bitfinex/quotes_SOLUSD_20251130
["timestamp","ask_amount","ask_price","bid_price","bid_amount"]
[1764470939950,1e-08,136.23,136.21,0.68]
[1764470941775,3.26345984,136.22,136.19,0.68]
[1764470942077,3.53345985,136.23,136.19,0.68]
[1764470942256,0.27000001,136.23,136.19,0.68]
[1764470942462,1e-08,136.23,136.2,7.3421439]
[1764470942861,1e-08,136.23,136.21,0.68]
[1764470951372,1e-08,136.23,136.21,8.02121112]
[1764470951767,1e-08,136.23,136.22,0.68]
[1764470952292,1e-08,136.23,136.21,7.34121112]
[1764470952478,1e-08,136.23,136.21,8.02121112]
[1764470956790,3.26345985,136.23,136.18,14.02661646]
[1764470957090,3.26345984,136.2,136.18,7.34315662]
[1764470957296,3.26345984,136.2,136.19,0.68]
[1764470958382,3.26345984,136.21,136.19,0.68]
[1764470963500,3.26345984,136.2,136.19,0.68]
[1764470964102,3.26345984,136.21,136.19,0.68]
[1764470972107,10.60509371,136.21,136.19,0.68]
[1764470975496,10.60566402,136.2,136.17,0.71]
[1764470978712,3.26345984,136.2,136.17,0.71]
[1764470981303,3.26345984,136.2,136.17,8.05373295]
[1764470981506,3.26345984,136.2,136.18,0.71]
[1764470985100,3.53345984,136.2,136.17,8.05373295]
[1764470985287,3.26345984,136.19,136.17,0.71]
[1764470990600,2.08977182,136.19,136.16,8.05418382]
[1764470991112,2.08977182,136.19,136.16,7.34418382]
[1764470991414,2.08977182,136.19,136.17,0.71]
[1764470997224,2.08977182,136.18,136.15,11.26471667]
[1764470997427,18.39863582,136.21,136.17,0.7]
[1764470997727,16.308864,136.21,136.17,0.7]
[1764470997930,18.39863582,136.21,136.17,0.7]
[1764470999818,25.74037688,136.21,136.17,8.0436599]
[1764471000019,25.74037688,136.21,136.18,0.7]
[1764471001236,18.39863582,136.21,136.18,0.7]
[1764471001714,2.08977182,136.2,136.18,0.7]
[1764471002640,7.34191691,136.21,136.18,0.7]
[1764471003451,7.34191691,136.21,136.18,2.78977182]
[1764471003634,7.34191691,136.21,136.19,0.7]
[1764471011157,9.70168873,136.21,136.18,0.7]
[1764471011456,9.43168873,136.21,136.18,0.7]
[1764471015456,2.08977182,136.2,136.16,29.40712272]
[1764471015654,2.08977182,136.2,136.17,0.7]
[1764471018365,2.08977182,136.2,136.17,8.04373812]
[1764471018567,2.08977182,136.2,136.18,0.7]
[1764471019760,2.08977182,136.19,136.17,7.34373812]
[1764471019960,2.08977182,136.19,136.17,8.04373812]
[1764471020350,2.08977182,136.19,136.17,7.34373812]
[1764471020555,2.08977182,136.19,136.18,0.7]
[1764471022661,2.08977182,136.2,136.18,0.7]
[1764471023048,2.08977182,136.2,136.17,8.04373812]
[1764471023459,2.08977182,136.2,136.18,0.7]
[1764471026540,7.34191691,136.21,136.18,0.7]
[1764471026864,9.43168873,136.21,136.18,0.7]
[1764471027052,2.08977182,136.2,136.18,0.7]
[1764471030660,0.27,136.21,136.18,8.04293556]
[1764471030869,5.57977182,136.21,136.18,8.04293556]
[1764471034080,3.22,136.21,136.19,0.65]
[1764471038471,5.30977182,136.21,136.19,0.65]
[1764471042375,3.22,136.21,136.19,0.65]
[1764471042575,5.30977182,136.21,136.19,0.65]
[1764471046986,1e-08,136.23,136.19,7.99231676]
[1764471047158,2.08977183,136.23,136.19,30.0519513]
[1764471047360,2.08977183,136.23,136.2,0.65]
[1764471048256,2.08977183,136.23,136.2,7.99202485]
[1764471048456,2.08977183,136.23,136.21,0.65]
[1764471051455,1e-08,136.23,136.21,0.65]
[1764471051758,2.08977182,136.22,136.21,0.65]
[1764471052579,3.2636378,136.22,136.21,0.65]
[1764471053163,3.26363781,136.23,136.21,0.65]
[1764471059691,1e-08,136.23,136.21,0.65]
[1764471059875,3.26363781,136.23,136.21,0.65]
[1764471060475,1e-08,136.23,136.21,7.9915693]
[1764471060888,1e-08,136.23,136.22,0.65]
[1764471066994,1e-08,136.23,136.22,7.99106592]
[1764471067500,1e-08,136.23,136.22,11.41106592]
[1764471069792,1e-08,136.23,136.22,7.99106592]
[1764471069985,1e-08,136.23,136.21,29.39781401]
[1764471070189,1e-08,136.23,136.21,7.99142318]
[1764471070393,3.2636378,136.22,136.2,22.05801257]
[1764471070596,3.2636378,136.22,136.2,0.65]
[1764471071000,3.2636378,136.22,136.19,16.35009665]
[1764471071200,3.2636378,136.22,136.19,17.00009665]
[1764471071386,3.2636378,136.22,136.2,0.65]
[1764471073325,3.2636378,136.22,136.2,7.99204543]
[1764471073503,3.2636378,136.22,136.21,0.65]
[1764471074989,3.5336378,136.22,136.19,15.53273886]
[1764471075298,3.2636378,136.21,136.19,7.99258713]
[1764471076187,3.2636378,136.21,136.19,7.34258713]
[1764471076390,3.2636378,136.21,136.2,0.65]
[1764471077208,3.2636378,136.21,136.19,7.99258713]
[1764471077806,3.2636378,136.22,136.19,7.99258713]
[1764471078501,3.2636378,136.2,136.18,10.56055228]
[1764471078807,3.2636378,136.2,136.18,0.65]
[1764471081408,3.2636378,136.19,136.17,7.99345425]
[1764471082109,3.2636378,136.19,136.17,7.34345425]
[1764471082306,3.22,136.2,136.18,0.65]
[1764471084509,1e-08,136.23,136.18,11.25647078]
[1764471084710,3.22,136.22,136.18,11.25647078]
[1764471084911,3.22,136.22,136.19,0.65]
[1764471085216,6.4836378,136.22,136.19,0.65]
[1764471085393,6.4836378,136.22,136.19,7.9922695]
[1764471085594,6.4836378,136.22,136.2,0.66]
[1764471087020,3.2636378,136.21,136.19,7.3422695]
[1764471087321,3.2636378,136.21,136.19,8.0422695]
[1764471087713,3.2636378,136.21,136.19,0.7]
[1764471097100,3.2636378,136.21,136.18,8.04300627]
[1764471097301,3.2636378,136.2,136.18,7.34300627]
[1764471097515,3.2636378,136.2,136.19,0.7]
[1764471099819,17.90320632,136.22,136.19,0.7]
[1764471100020,3.2636378,136.21,136.19,0.7]
[1764471102146,3.5336378,136.2,136.17,0.7]
[1764471102427,3.2636378,136.19,136.17,0.7]
[1764471104919,3.2636378,136.18,136.17,0.7]
[1764471106807,3.2636378,136.18,136.16,7.34404093]
[1764471107004,3.2636378,136.18,136.16,8.04404093]
[1764471107501,3.2636378,136.18,136.16,0.7]
[1764471109527,28.55138578,136.19,136.16,0.7]
[1764471110213,35.89413248,136.19,136.16,0.7]
[1764471110729,3.2636378,136.18,136.15,7.34464565]
[1764471111029,3.2636378,136.18,136.15,8.04464565]
[1764471111211,3.2636378,136.18,136.16,0.7]
[1764471111734,3.2636378,136.17,136.15,0.7]
[1764471114533,2.09047281,136.17,136.15,0.7]
[1764471115811,2.09047281,136.16,136.13,3.92]
[1764471116012,2.09047281,136.16,136.14,0.7]
[1764471116211,5.31047281,136.16,136.14,0.7]
[1764471117810,12.65482762,136.16,136.12,7.34607058]
[1764471118013,12.65482762,136.16,136.11,38.15290578]
[1764471118014,2.09047281,136.15,136.13,0.7]
[1764471118214,2.09047281,136.15,136.1,18.39933681]
[1764471118215,2.09047281,136.15,136.12,0.7]
[1764471118413,12.92482762,136.15,136.12,0.7]
[1764471118615,2.09047281,136.14,136.11,0.7]
[1764471119130,2.36047281,136.14,136.11,0.7]
[1764471119434,9.70615886,136.14,136.11,0.7]
[1764471119640,9.43615886,136.14,136.11,0.7]
[1764471119835,2.09047281,136.12,136.1,0.7]
[1764471120836,2.36047281,136.12,136.09,7.34801889]
[1764471121039,10.56594061,136.13,136.08,0.1]
[1764471121040,18.39933681,136.1,136.08,0.1]
[1764471121238,5.31047281,136.09,136.08,0.1]
[1764471122224,12.92855128,136.09,136.08,0.1]
[1764471123843,3.22,136.09,136.08,0.8]
[1764471127523,10.58746422,136.11,136.08,0.8]
[1764471129648,10.58746422,136.11,136.08,2.89047281]
[1764471130022,10.58746422,136.11,136.09,0.7]
[1764471130223,3.24,136.11,136.09,0.7]
[1764471134849,3.24,136.11,136.09,8.04792496]
[1764471135225,7.44966858,136.13,136.1,2.79047281]
[1764471135549,3.24,136.14,136.1,2.79047281]
[1764471135734,3.24,136.14,136.11,0.7]
[1764471136338,3.24,136.14,136.11,2.79047281]
[1764471136544,3.24,136.14,136.12,0.7]
[1764471137546,25.31424303,136.16,136.12,10.13681706]
[1764471137727,25.31424303,136.16,136.13,2.09047281]
[1764471137928,3.24,136.16,136.14,0.7]
[1764471143039,5.60047281,136.16,136.13,0.7]
[1764471143549,5.33047281,136.16,136.13,0.7]
[1764471147048,2.09047281,136.15,136.13,0.7]
[1764471147248,2.09047281,136.15,136.12,8.006459]
[1764471148048,2.09047281,136.15,136.12,7.346459]
[1764471148242,2.09047281,136.15,136.13,0.68]
[1764471152042,9.43532796,136.15,136.11,16.15678442]
[1764471152246,9.70532796,136.15,136.12,0.68]
[1764471152453,2.09047281,136.14,136.12,0.68]
[1764471153942,9.43532796,136.15,136.12,0.68]
[1764471158941,9.70532796,136.15,136.12,0.68]
[1764471159537,9.43532796,136.15,136.12,0.68]
[1764471163851,3.22,136.14,136.12,0.68]
[1764471170901,5.31047281,136.14,136.12,0.68]
[1764471174674,6.48759287,136.14,136.12,0.68]
[1764471175059,3.22,136.14,136.12,0.68]
[1764471179982,13.83298179,136.14,136.12,0.68]
[1764471180678,13.83298179,136.14,136.1,7.34733605]
[1764471180881,3.26759287,136.13,136.11,0.68]
[1764471181376,10.61364631,136.13,136.11,0.68]
[1764471181677,3.26759287,136.12,136.1,0.68]
[1764471182460,10.61364631,136.13,136.1,0.68]
[1764471183577,16.308864,136.14,136.1,8.02738228]
[1764471183782,3.22,136.15,136.11,3.26759287]
[1764471183964,10.56491811,136.15,136.11,3.94759287]
[1764471184156,10.56491811,136.15,136.12,0.68]
[1764471190483,13.83251098,136.15,136.12,0.68]
[1764471193866,10.56491811,136.15,136.12,0.68]
[1764471194066,13.83251098,136.15,136.12,0.68]
[1764471194375,10.56491811,136.15,136.12,0.68]
[1764471194577,13.83251098,136.15,136.12,0.68]
[1764471195185,0.27,136.14,136.1,7.34739108]
[1764471195385,3.26759287,136.14,136.12,0.68]
[1764471195580,13.83251098,136.15,136.12,0.68]
[1764471197286,3.22,136.15,136.12,0.68]
[1764471197868,10.56486346,136.15,136.12,0.68]
[1764471202273,13.83245633,136.15,136.12,0.68]
[1764471204893,0.27,136.14,136.1,0.68]
[1764471205095,3.26759287,136.12,136.11,0.68]
[1764471205303,6.48759287,136.13,136.11,0.68]
[1764471206003,13.83367426,136.13,136.11,0.68]
[1764471206203,3.26759287,136.12,136.11,0.68]
[1764471206494,3.26759287,136.12,136.1,0.67]
[1764471206876,10.56608139,136.13,136.1,0.67]
[1764471207090,13.83367426,136.13,136.1,0.67]
[1764471209000,10.56608139,136.13,136.1,0.67]
[1764471210304,3.22,136.13,136.1,0.67]
[1764471212205,3.22,136.13,136.1,8.01752006]
[1764471212404,3.22,136.13,136.11,0.67]
[1764471215507,6.48759287,136.13,136.11,0.67]
[1764471216385,6.48759287,136.13,136.1,0.67]
[1764471217311,3.22,136.13,136.1,8.01750318]
[1764471217604,6.48759287,136.13,136.1,8.01750318]
[1764471217907,6.48759287,136.13,136.11,0.67]
[1764471220197,6.48759287,136.13,136.1,8.01750318]
[1764471220394,6.75759287,136.13,136.1,8.01750318]
[1764471221111,6.48759287,136.13,136.11,0.67]
[1764471221316,3.22,136.13,136.11,0.67]
[1764471223607,3.22,136.13,136.1,0.67]
[1764471223785,3.22,136.13,136.11,0.67]
[1764471225299,6.75759287,136.13,136.1,8.0173495]
[1764471225688,3.53759287,136.12,136.09,7.34791558]
[1764471225886,3.26759287,136.11,136.09,0.67]
[1764471226224,3.53759287,136.11,136.08,8.11859413]
[1764471226391,3.26759287,136.11,136.08,8.11859413]
[1764471227222,3.26759287,136.11,136.08,0.1]
[1764471227528,3.22,136.1,136.08,0.77]
[1764471227811,3.26759287,136.09,136.08,0.1]
[1764471228211,0.27,136.09,136.08,0.1]
[1764471228513,3.53759287,136.09,136.08,0.1]
[1764471228719,10.88567134,136.09,136.08,0.1]
[1764471230220,10.61567134,136.09,136.08,0.1]
[1764471230616,7.34807847,136.09,136.08,0.1]
[1764471230818,3.26759287,136.09,136.08,0.1]
[1764471231019,10.83756056,136.1,136.08,0.1]
[1764471231517,3.26759287,136.09,136.08,0.1]
[1764471233120,10.61567134,136.09,136.08,0.1]
[1764471236032,3.24,136.09,136.08,0.76]
[1764471236934,125.71196016,136.12,136.08,0.76]
[1764471236935,5.0375171,136.12,136.08,0.76]
[1764471237119,3.24,136.11,136.08,0.76]
[1764471239928,3.24,136.11,136.08,8.10845219]
[1764471240323,3.24,136.11,136.09,0.66]
[1764471252517,5.33276796,136.11,136.09,0.66]
[1764471255134,2.09276796,136.1,136.08,0.1]
[1764471255340,2.09276796,136.1,136.09,0.66]
[1764471258131,10.58709313,136.11,136.08,0.76]
[1764471258332,2.09276796,136.1,136.08,0.76]
[1764471261732,10.58709313,136.11,136.08,0.76]
[1764471261927,2.09276796,136.1,136.08,0.76]
[1764471262850,12.67986109,136.11,136.08,0.76]
[1764471265244,10.58709313,136.11,136.08,0.76]
[1764471265448,2.09276796,136.12,136.08,8.10830482]
[1764471265624,2.09276796,136.11,136.08,0.76]
[1764471265950,2.09276796,136.11,136.09,0.66]
[1764471266749,9.43984205,136.11,136.09,0.66]
[1764471268548,7.34707409,136.11,136.09,0.66]
[1764471270157,3.24,136.12,136.09,0.66]
[1764471271049,5.33276796,136.12,136.09,0.66]
[1764471271241,12.67939794,136.12,136.09,0.66]
[1764471279060,12.67939794,136.12,136.09,0.66]
[1764471285361,3.24,136.12,136.09,8.00792333]
[1764471285558,5.33276796,136.12,136.09,8.00792333]
[1764471285753,5.33276796,136.12,136.1,0.66]
[1764471288844,3.22,136.13,136.1,8.00753142]
[1764471289364,3.22,136.13,136.11,0.66]
[1764471290564,9.43835404,136.14,136.11,0.66]
[1764471292156,2.09276796,136.14,136.11,0.66]
[1764471292865,2.09276796,136.13,136.11,0.66]
[1764471293863,2.09276796,136.12,136.09,0.66]
[1764471294065,0.27,136.13,136.09,0.66]
[1764471294066,2.09276796,136.11,136.09,0.66]
[1764471296758,3.26904118,136.11,136.09,0.66]
[1764471297262,3.26904118,136.11,136.09,8.00807786]
[1764471297464,3.26904118,136.11,136.1,0.72]
[1764471297970,3.26904118,136.11,136.09,8.06807786]
[1764471298352,3.26904118,136.1,136.09,8.06807786]
[1764471298949,3.26904118,136.11,136.09,8.06807786]
[1764471299380,3.26904118,136.11,136.09,7.34807786]
[1764471299683,3.26904118,136.11,136.1,0.72]
[1764471300774,3.26904118,136.11,136.08,7.44542637]
[1764471300991,3.26904118,136.11,136.09,0.72]
[1764471304057,24.40243222,136.12,136.09,0.72]
[1764471308791,13.8357367,136.12,136.09,0.72]
[1764471310892,24.50243222,136.12,136.09,0.72]
[1764471312067,13.8357367,136.12,136.09,0.72]
[1764471312365,24.50243222,136.12,136.09,0.72]
[1764471313292,3.26904118,136.11,136.09,0.72]
[1764471314304,3.26904118,136.11,136.08,0.1]
[1764471314305,7.61753857,136.1,136.08,0.1]
[1764471314472,6.48904118,136.09,136.08,0.1]
[1764471314676,17.4257367,136.09,136.08,0.1]
[1764471316475,24.77381517,136.09,136.08,0.1]
[1764471325422,41.08267917,136.09,136.08,0.1]
[1764471328185,37.86267917,136.09,136.08,0.1]
[1764471328391,37.56363799,136.09,136.08,0.1]
[1764471328611,41.10267917,136.09,136.08,0.1]
[1764471340531,40.83267917,136.09,136.08,0.1]
[1764471343626,41.10267917,136.09,136.08,0.1]
[1764471344020,40.83267917,136.09,136.08,0.1]
[1764471353425,40.83267917,136.09,136.08,0.81]
[1764471356250,37.59267917,136.09,136.08,0.81]
[1764471356448,40.83267917,136.09,136.08,0.81]
[1764471358447,37.59267917,136.09,136.08,0.81]
[1764471358747,3.24,136.11,136.08,0.81]
[1764471359246,5.33251808,136.11,136.08,0.81]
[1764471360544,2.09251808,136.09,136.08,0.81]
[1764471360749,5.33251808,136.09,136.08,0.81]
[1764471361942,12.68059655,136.09,136.08,0.81]
[1764471374849,5.33251808,136.09,136.08,0.81]
[1764471375741,3.24,136.09,136.08,0.81]
[1764471377862,3.22,136.11,136.08,8.15861845]
[1764471378055,5.036617,136.14,136.09,8.80994492]
[1764471378247,3.22,136.13,136.1,0.69]
[1764471380274,3.22,136.13,136.1,8.03749803]
[1764471380768,3.22,136.13,136.11,0.69]
[1764471384744,5.31251808,136.13,136.11,0.69]
[1764471386155,3.22,136.13,136.11,0.69]
[1764471386475,5.31251808,136.13,136.11,0.69]
[1764471391970,3.22,136.13,136.11,0.69]
[1764471393053,2.877,136.13,136.11,0.69]
[1764471398566,2.09251808,136.12,136.11,0.69]
[1764471398768,2.09251808,136.12,136.11,0.68]
[1764471399473,4.96951808,136.13,136.11,0.68]
[1764471403568,2.09251808,136.12,136.11,0.68]
[1764471404775,4.96951808,136.13,136.11,0.68]
[1764471410101,2.877,136.13,136.11,0.68]
[1764471410273,4.96951808,136.13,136.11,0.68]
[1764471415702,4.96951808,136.13,136.11,8.02698066]
[1764471416094,4.96951808,136.13,136.11,7.34698066]
[1764471416296,4.96951808,136.13,136.12,0.71]
[1764471418601,6.14526815,136.13,136.12,0.71]
[1764471419502,2.877,136.13,136.12,0.71]
[1764471419886,3.26826815,136.14,136.12,8.05637857]
[1764471420404,3.26826815,136.14,136.13,0.71]
[1764471424707,3.26826815,136.15,136.13,0.71]
[1764471426185,10.56441027,136.16,136.13,0.71]
[1764471426186,3.26826815,136.14,136.13,0.71]
[1764471426491,3.26826815,136.14,136.12,0.71]
[1764471426696,3.26826815,136.13,136.12,0.71]
[1764471430216,3.26826815,136.13,136.1,7.3474237]
[1764471430514,3.26826815,136.12,136.1,7.3474237]
[1764471430828,3.26826815,136.12,136.11,0.71]
[1764471431503,3.26826815,136.13,136.11,0.71]
[1764471437308,3.53826815,136.12,136.09,8.80994492]
[1764471437513,3.26826815,136.1,136.08,0.1]
[1764471437713,3.26826815,136.09,136.08,0.81]
[1764471440926,10.56750058,136.11,136.08,0.81]
[1764471441104,3.26826815,136.09,136.08,0.81]
[1764471444415,3.26826815,136.1,136.08,0.1]
[1764471445623,3.26826815,136.1,136.09,0.71]
[1764471445813,13.83527992,136.11,136.09,0.71]
[1764471446014,13.83527992,136.11,136.1,0.71]
[1764471446235,13.83527992,136.11,136.08,0.1]
[1764471448237,13.83527992,136.11,136.09,0.71]
[1764471449541,6.48826815,136.11,136.09,0.71]
[1764471450927,111.74557186,136.14,136.09,8.05795146]
[1764471451114,3.26826815,136.13,136.1,8.05739594]
[1764471451320,3.26826815,136.13,136.11,0.71]
[1764471452628,13.83366121,136.14,136.11,0.71]
[1764471456546,3.26826815,136.13,136.11,0.71]
[1764471459538,3.26826815,136.12,136.1,0.71]
[1764471463242,10.61484144,136.12,136.1,0.71]
[1764471466755,10.61418749,136.13,136.1,0.71]
[1764471472262,3.26826815,136.13,136.1,0.71]
[1764471474266,3.22,136.13,136.1,8.05720188]
[1764471474652,3.22,136.13,136.08,21.73882889]
[1764471474653,6.48826815,136.13,136.08,0.1]
[1764471474845,3.26826815,136.11,136.09,0.71]
[1764471475370,3.26826815,136.12,136.09,0.71]
[1764471476066,3.26826815,136.11,136.09,0.71]
[1764471480266,7.34681768,136.12,136.09,0.71]
[1764471480483,6.48826815,136.13,136.09,8.05765753]
[1764471480656,5.31161096,136.13,136.09,8.05765753]
[1764471480964,5.31161096,136.13,136.1,0.67]
[1764471481871,5.31161096,136.13,136.1,8.01721733]
[1764471482050,2.09161096,136.11,136.1,8.01721733]
[1764471482250,2.09161096,136.11,136.1,7.34721733]
[1764471482879,3.22,136.13,136.1,8.01721733]
[1764471483085,3.49,136.13,136.1,8.01721733]
[1764471483383,3.22,136.13,136.11,0.67]
[1764471483688,3.49,136.13,136.1,8.01721733]
[1764471483976,3.22,136.13,136.11,0.67]
[1764471485080,2.09161096,136.12,136.11,0.67]
[1764471486756,12.65753327,136.13,136.11,0.67]
[1764471487980,7.34551204,136.14,136.11,0.67]
[1764471488186,3.22,136.13,136.11,0.67]
[1764471490392,7.34551204,136.14,136.11,0.67]
[1764471492484,21.62047496,136.15,136.11,8.01692456]
[1764471492684,19.528864,136.15,136.11,8.01692456]
[1764471492983,19.528864,136.15,136.12,0.67]
[1764471493562,21.62047496,136.15,136.12,0.67]
[1764471494489,21.62047496,136.15,136.12,8.01643761]
[1764471494892,21.62047496,136.15,136.13,0.67]
[1764471497592,3.22,136.15,136.13,0.67]
[1764471498294,5.31161096,136.15,136.13,0.67]
[1764471498971,2.36161096,136.14,136.1,0.67]
[1764471499299,2.09161096,136.11,136.09,16.15791708]
[1764471499472,2.09161096,136.12,136.09,16.15791708]
[1764471499883,2.09161096,136.12,136.1,0.67]
[1764471503203,2.09161096,136.11,136.1,0.67]
[1764471504807,2.09161096,136.11,136.1,8.01753857]
[1764471508101,7.61582677,136.14,136.1,8.01753857]
[1764471508308,2.09161096,136.12,136.11,0.68]
[1764471519817,7.3459385,136.13,136.11,0.68]
[1764471519990,2.09161096,136.12,136.11,0.68]
[1764471523301,5.31161096,136.12,136.11,0.68]
[1764471525922,5.31161096,136.12,136.1,0.68]
[1764471528433,3.22,136.12,136.1,0.68]
[1764471529232,2.09161096,136.11,136.09,7.3478814]
[1764471529409,2.09161096,136.11,136.1,0.68]
[1764471539439,2.09161096,136.11,136.09,0.66]
[1764471542656,3.26928407,136.11,136.09,0.66]
[1764471544943,10.61636656,136.11,136.09,0.66]
[1764471549343,3.26928407,136.1,136.09,0.66]
[1764471550124,10.61682264,136.1,136.08,0.1]
[1764471550322,3.26928407,136.09,136.08,0.76]
[1764471556162,10.61736254,136.09,136.08,0.1]
[1764471556361,13.83736254,136.09,136.08,0.1]
[1764471556528,13.83736254,136.09,136.08,0.76]
[1764471557552,13.83736254,136.09,136.08,0.1]
[1764471560533,14.10736254,136.09,136.08,0.1]
[1764471566164,30.41622654,136.09,136.08,0.1]
[1764471566541,33.36119248,136.09,136.08,0.1]
[1764471571166,30.41622654,136.09,136.08,0.1]
[1764471571840,30.14622654,136.09,136.08,0.76]
[1764471572150,26.92622654,136.09,136.08,0.1]
[1764471572353,30.14622654,136.09,136.08,0.1]
[1764471572545,30.41622654,136.09,136.08,0.1]
[1764471573371,30.14622654,136.09,136.08,0.1]
[1764471576289,6.48928407,136.09,136.08,0.76]
[1764471577348,13.83736254,136.09,136.08,0.76]
[1764471581258,10.56807847,136.09,136.08,0.76]
[1764471588477,13.83736254,136.09,136.08,0.76]
[1764471589365,10.56807847,136.09,136.08,0.76]
[1764471591860,6.21381644,136.12,136.08,0.76]
[1764471592063,3.22,136.11,136.08,0.76]
[1764471593282,3.22,136.11,136.08,8.10856459]
[1764471593671,3.22,136.11,136.09,0.66]
[1764471596588,3.22,136.11,136.09,8.00803765]
[1764471597488,3.22,136.11,136.1,0.68]
[1764471598809,6.48928407,136.13,136.1,0.68]
[1764471600387,3.26928407,136.12,136.1,0.68]
[1764471602680,2.0920294,136.12,136.1,0.68]
[1764471603392,10.56593564,136.13,136.1,0.68]
[1764471603578,2.0920294,136.12,136.1,0.68]
[1764471606382,2.0920294,136.11,136.08,7.4486122]
[1764471606698,2.0920294,136.11,136.09,0.68]
[1764471607898,5.3120294,136.1,136.08,7.4486122]
[1764471608087,5.3120294,136.1,136.09,0.68]
[1764471608281,5.3120294,136.1,136.08,0.78]
[1764471608487,2.0920294,136.09,136.08,0.78]
[1764471609176,5.3120294,136.1,136.08,0.78]
[1764471611301,12.65963476,136.1,136.08,0.78]
[1764471612277,5.3120294,136.1,136.08,0.78]
[1764471619504,2.0920294,136.09,136.08,0.78]
[1764471619707,2.0920294,136.09,136.08,0.1]
[1764471620011,9.71010787,136.09,136.08,0.1]
[1764471620510,9.44010787,136.09,136.08,0.1]
[1764471621402,9.71010787,136.09,136.08,0.1]
[1764471623210,9.44010787,136.09,136.08,0.1]
[1764471633720,7.34763203,136.1,136.08,0.1]
[1764471633920,19.528864,136.11,136.08,0.82]
[1764471634121,5.3120294,136.11,136.08,0.82]
[1764471634499,2.0920294,136.1,136.08,0.82]
[1764471648531,12.65904412,136.11,136.08,0.82]
[1764471652733,2.0920294,136.1,136.08,0.82]
[1764471655336,10.56701472,136.11,136.08,0.82]
[1764471655635,2.0920294,136.1,136.08,0.82]
[1764471656634,12.65904412,136.11,136.08,0.82]
[1764471657137,20.10819174,136.11,136.08,0.82]
[1764471659834,20.37819174,136.11,136.08,0.79]
[1764471660132,2.0920294,136.1,136.08,0.79]
[1764471660930,2.0920294,136.09,136.08,0.1]
[1764471661318,9.64117702,136.09,136.08,0.1]
[1764471661719,10.32117702,136.09,136.06,7.3393439]
[1764471661933,9.64117702,136.09,136.06,7.3393439]
[1764471662125,10.32117702,136.09,136.06,7.3393439]
[1764471662325,9.64117702,136.09,136.06,7.3393439]
[1764471662618,9.43920758,136.11,136.06,7.3393439]
[1764471662838,3.22,136.1,136.06,9.4313733]
[1764471663631,3.22,136.1,136.07,8.03874529]
[1764471663939,12.6513733,136.1,136.07,8.03874529]
[1764471664242,12.6513733,136.1,136.08,0.69]
[1764471665639,3.22,136.1,136.08,0.69]
[1764471669946,3.22,136.1,136.08,8.03846475]
[1764471670136,6.4891844,136.13,136.09,8.80994492]
[1764471670336,3.22,136.13,136.1,0.69]
[1764471670939,6.4891844,136.13,136.1,0.69]
[1764471672054,6.4891844,136.13,136.1,8.03739485]
[1764471672247,6.4891844,136.13,136.11,0.69]
[1764471675457,7.1691844,136.13,136.11,0.69]
[1764471679265,6.4891844,136.13,136.11,0.69]
[1764471686264,3.2691844,136.14,136.11,0.69]
[1764471686974,3.9891844,136.14,136.11,0.69]
[1764471687470,11.3348626,136.14,136.11,0.69]
[1764471690073,3.22,136.13,136.11,0.69]
[1764471692074,13.83512367,136.13,136.11,0.69]
[1764471692454,3.2691844,136.12,136.1,0.71]
[1764471694954,7.2091844,136.11,136.08,16.308864]
[1764471695158,3.2691844,136.09,136.05,0.1]
[1764471695372,3.94,136.11,136.05,19.6780484]
[1764471695373,3.2691844,136.07,136.05,19.6780484]
[1764471695675,3.9891844,136.07,136.05,0.1]
[1764471695876,3.2691844,136.06,136.05,0.81]